[Event "European Women Rapid-ch 2023"]
[Site "Monaco"]
[Date "2024.01.14"]
[Round "7.1"]
[White "Kosteniuk, Alexandra"]
[Black "Osmak, Yuliia"]
[Result "1-0"]
[ECO "C28"]
[WhiteElo "2501"]
[BlackElo "2450"]
[Annotator "RC"]
[PlyCount "83"]
[EventDate "2023.12.19"]
[EventType "swiss"]
[EventCountry "MNC"]
[SourceTitle "playchess.com"]
[Source "ChessBase"]
[SourceQuality "1"]
[TimeControl "900+10"]

1. e4 {[%emt 0:00:02]} e5 {[%emt 0:00:01]} 2. Bc4 {[%emt 0:00:01]} Nc6 {[%emt 0:00:06]} 3. Nc3 {[%emt 0:00:05]} Nf6 {[%emt 0:00:05]} 4. d3 {[%emt 0:00:04]} Bb4 {[%emt 0:00:42]} 5. Bg5 {[%emt 0:00:06]} h6 {[%emt 0:00:08]} 6. Bh4 {[%emt 0:00:27]} g5 {[%emt 0:01:58]} 7. Bg3 {[%emt 0:00:03]} d5 {[%emt 0:00:07]} 8. exd5 {[%emt 0:00:56]} Nxd5 {[%emt 0:00:03]} 9. Qd2 {[%emt 0:00:18]} Be6 {[%emt 0:01:17]} 10. Bb5 {[%emt 0:00:21]} Qd6 {[%emt 0:02:02]} 11. Nge2 {[%emt 0:03:04]} Nf4 {[%emt 0:03:19]} 12. Bxf4 {[%emt 0:00:13]} gxf4 {[%emt 0:00:30]} 13. a3 {[%emt 0:00:03]} Bxc3 {[%emt 0:00:46]} 14. Qxc3 {[%emt 0:00:06]} O-O-O {[%emt 0:00:28]} 15. Bxc6 {[%emt 0:00:07]} Qxc6 {[%emt 0:00:01]} 16. Qxc6 {[%emt 0:00:05]} bxc6 {[%emt 0:00:01]} 17. f3 {[%emt 0:00:15]} h5 {[%emt 0:00:28]} 18. g3 {[%emt 0:00:15]} fxg3 {[%emt 0:00:28]} 19. hxg3 {[%emt 0:00:02]} c5 {[%emt 0:00:38]} 20. b3 {[%emt 0:00:01]} Bd5 {[%emt 0:00:07]} 21. Kf2 {[%emt 0:00:03]} Rh6 {[%emt 0:00:16]} 22. Ke3 {[%emt 0:00:13]} f5 {[%emt 0:00:12]} 23. Rh4 {[%emt 0:00:09]} Bf7 {[%emt 0:00:25]} 24. g4 {[%emt 0:00:41]} fxg4 {[%emt 0:01:25]} 25. fxg4 {[%emt 0:00:03]} e4 {[%emt 0:00:15]} 26. dxe4 {[%emt 0:00:26]} c4 {[%emt 0:00:20]} 27. Rf1 {[%emt 0:01:19]} Be8 {[%emt 0:02:00]} 28. bxc4 {[%emt 0:00:27]} Ra6 {[%emt 0:00:12]} 29. gxh5 {[%emt 0:00:09]} Rxa3+ {[%emt 0:00:01]} 30. c3 {[%emt 0:00:01]} Ra6 {[%emt 0:00:46]} 31. h6 {[%emt 0:00:49]} Bg6 {[%emt 0:00:04]} 32. Nf4 {[%emt 0:00:09]} Bh7 {[%emt 0:00:43]} 33. Nd5 {[%emt 0:00:04]} Rd7 {[%emt 0:00:31]} 34. Rf6 {[%emt 0:00:54]} Ra1 {[%emt 0:00:04]} 35. c5 {[%emt 0:01:11]} Re1+ {[%emt 0:00:10]} 36. Kd4 {[%emt 0:00:07]} Rd1+ {[%emt 0:00:18]} 37. Kc4 {[%emt 0:00:07]} Re1 {[%emt 0:00:11]} 38. c6 {[%emt 0:00:25]} Rd8 {[%emt 0:00:01]} 39. Rf7 {[%emt 0:00:07]} Rxe4+ {[%emt 0:00:20]} 40. Rxe4 {[%emt 0:00:02]} Bxe4 {[%emt 0:00:09]} 41. Rxc7+ {[%emt 0:00:02]} Kb8 {[%emt 0:00:01]} 42. Rb7+ {[%emt 0:00:01]} 1-0

[Event "European Women Rapid-ch 2023"]
[Site "Monaco"]
[Date "2024.01.14"]
[Round "7.2"]
[White "Khotenashvili, Bella"]
[Black "Ushenina, Anna"]
[Result "1/2-1/2"]
[ECO "D02"]
[WhiteElo "2467"]
[BlackElo "2415"]
[Annotator "RC"]
[PlyCount "238"]
[EventDate "2023.12.19"]
[EventType "swiss"]
[EventCountry "MNC"]
[SourceTitle "playchess.com"]
[Source "ChessBase"]
[SourceQuality "1"]
[TimeControl "900+10"]

1. Nf3 {[%emt 0:00:02]} d5 {[%emt 0:00:05]} 2. g3 {[%emt 0:00:01]} Nd7 {[%emt 0:00:17]} 3. d4 {[%emt 0:00:12]} Nb6 {[%emt 0:00:03]} 4. a4 {[%emt 0:00:07]} a5 {[%emt 0:00:04]} 5. b3 {[%emt 0:00:04]} Bf5 {[%emt 0:00:21]} 6. Nh4 {[%emt 0:00:20]} Be4 {[%emt 0:00:32]} 7. f3 {[%emt 0:00:03]} Bg6 {[%emt 0:00:02]} 8. Ba3 {[%emt 0:00:06]} e6 {[%emt 0:00:36]} 9. Bxf8 {[%emt 0:00:09]} Kxf8 {[%emt 0:00:01]} 10. Nc3 {[%emt 0:00:28]} Bh5 {[%emt 0:00:34]} 11. Qd2 {[%emt 0:00:17]} g5 {[%emt 0:01:56]} 12. Ng2 {[%emt 0:00:10]} Qf6 {[%emt 0:00:16]} 13. h4 {[%emt 0:02:41]} h6 {[%emt 0:00:02]} 14. O-O-O {[%emt 0:00:27]} c5 {[%emt 0:01:02]} 15. hxg5 {[%emt 0:01:55]} hxg5 {[%emt 0:00:02]} 16. dxc5 {[%emt 0:02:49]} Nd7 {[%emt 0:00:34]} 17. Qd4 {[%emt 0:00:06]} Kg7 {[%emt 0:05:01]} 18. g4 {[%emt 0:04:09]} Bg6 {[%emt 0:00:03]} 19. Rxh8 {[%emt 0:00:02]} Kxh8 {[%emt 0:00:02]} 20. e4 {[%emt 0:02:11]} dxe4 {[%emt 0:00:48]} 21. fxe4 {[%emt 0:00:02]} Qxd4 {[%emt 0:00:17]} 22. Rxd4 {[%emt 0:00:01]} Nxc5 {[%emt 0:00:02]} 23. e5 {[%emt 0:00:16]} Ne7 {[%emt 0:01:08]} 24. Bb5 {[%emt 0:00:05]} Kg7 {[%emt 0:00:15]} 25. Ne1 {[%emt 0:00:16]} Rh8 {[%emt 0:00:58]} 26. Nf3 {[%emt 0:00:54]} Rh3 {[%emt 0:00:06]} 27. Be2 {[%emt 0:00:03]} Nc6 {[%emt 0:00:05]} 28. Rc4 {[%emt 0:00:15]} b6 {[%emt 0:01:16]} 29. Nxg5 {[%emt 0:00:04]} Rh1+ {[%emt 0:00:21]} 30. Kd2 {[%emt 0:00:12]} Nxe5 {[%emt 0:00:07]} 31. Rd4 {[%emt 0:00:39]} Rh2 {[%emt 0:00:22]} 32. Kd1 {[%emt 0:00:36]} Rh1+ {[%emt 0:01:24]} 33. Kd2 {[%emt 0:00:01]} Rh2 {[%emt 0:00:10]} 34. Kd1 {[%emt 0:00:01]} Rg2 {[%emt 0:01:03]} 35. Nge4 {[%emt 0:00:07]} Nxe4 {[%emt 0:00:11]} 36. Nxe4 {[%emt 0:00:01]} Nxg4 {[%emt 0:00:01]} 37. Kd2 {[%emt 0:00:55]} f5 {[%emt 0:00:36]} 38. Nc3 {[%emt 0:00:18]} Kf6 {[%emt 0:00:18]} 39. Rd6 {[%emt 0:00:13]} f4 {[%emt 0:00:08]} 40. Ke1 {[%emt 0:00:07]} Ne3 {[%emt 0:00:18]} 41. Rxb6 {[%emt 0:00:05]} Nxc2+ {[%emt 0:00:07]} 42. Kf1 {[%emt 0:00:02]} Ne3+ {[%emt 0:00:00]} 43. Ke1 {[%emt 0:00:00]} Bf5 {[%emt 0:00:20]} 44. b4 {[%emt 0:00:10]} axb4 {[%emt 0:00:05]} 45. Nb5 {[%emt 0:00:10]} Be4 {[%emt 0:00:10]} 46. Nd4 {[%emt 0:00:11]} Bd5 {[%emt 0:00:24]} 47. Rxb4 {[%emt 0:00:06]} e5 {[%emt 0:00:02]} 48. Rb6+ {[%emt 0:00:00]} Kg5 {[%emt 0:00:04]} 49. Nf3+ {[%emt 0:00:41]} Bxf3 {[%emt 0:00:03]} 50. Bxf3 {[%emt 0:00:01]} Nc2+ {[%emt 0:00:07]} 51. Kf1 {[%emt 0:00:09]} Ne3+ {[%emt 0:00:02]} 52. Ke1 {[%emt 0:00:00]} Ra2 {[%emt 0:00:08]} 53. Rb5 {[%emt 0:00:04]} Kh4 {[%emt 0:00:46]} 54. Rxe5 {[%emt 0:00:15]} Rxa4 {[%emt 0:00:08]} 55. Re8 {[%emt 0:00:14]} Kg3 {[%emt 0:00:05]} 56. Bc6 {[%emt 0:00:09]} Ra1+ {[%emt 0:00:02]} 57. Ke2 {[%emt 0:00:03]} Ra2+ {[%emt 0:00:02]} 58. Kd3 {[%emt 0:00:02]} Ng4 {[%emt 0:00:15]} 59. Rg8 {[%emt 0:00:12]} Ra3+ {[%emt 0:00:19]} 60. Kd2 {[%emt 0:00:20]} Ra7 {[%emt 0:00:21]} 61. Be4 {[%emt 0:00:20]} Ra5 {[%emt 0:00:01]} 62. Bb7 {[%emt 0:00:27]} f3 {[%emt 0:00:11]} 63. Bxf3 {[%emt 0:00:12]} Kxf3 {[%emt 0:00:01]} 64. Kd3 {[%emt 0:00:07]} Rd5+ {[%emt 0:00:04]} 65. Kc4 {[%emt 0:00:02]} Rd7 {[%emt 0:00:03]} 66. Re8 {[%emt 0:00:02]} Kf4 {[%emt 0:00:03]} 67. Kc3 {[%emt 0:00:07]} Ne5 {[%emt 0:00:04]} 68. Rh8 {[%emt 0:00:08]} Rc7+ {[%emt 0:00:05]} 69. Kd4 {[%emt 0:00:02]} Rd7+ {[%emt 0:00:04]} 70. Kc5 {[%emt 0:00:01]} Kg5 {[%emt 0:00:46]} 71. Rh1 {[%emt 0:00:09]} Kf5 {[%emt 0:00:07]} 72. Rh5+ {[%emt 0:00:04]} Kf6 {[%emt 0:00:15]} 73. Rh6+ {[%emt 0:00:01]} Ng6 {[%emt 0:00:02]} 74. Rh1 {[%emt 0:00:07]} Ke6 {[%emt 0:00:05]} 75. Rh6 {[%emt 0:00:01]} Rg7 {[%emt 0:00:03]} 76. Kd4 {[%emt 0:00:18]} Kf5 {[%emt 0:00:10]} 77. Rh5+ {[%emt 0:00:13]} Kf4 {[%emt 0:00:02]} 78. Rh1 {[%emt 0:00:17]} Rd7+ {[%emt 0:00:02]} 79. Kc5 {[%emt 0:00:01]} Rd2 {[%emt 0:00:15]} 80. Rf1+ {[%emt 0:00:06]} Ke5 {[%emt 0:00:05]} 81. Re1+ {[%emt 0:00:02]} Kf5 {[%emt 0:00:02]} 82. Rh1 {[%emt 0:00:06]} Nf4 {[%emt 0:00:03]} 83. Rh8 {[%emt 0:00:06]} Ke5 {[%emt 0:00:03]} 84. Re8+ {[%emt 0:00:06]} Ne6+ {[%emt 0:00:01]} 85. Kc4 {[%emt 0:00:00]} Rd4+ {[%emt 0:00:09]} 86. Kc3 {[%emt 0:00:01]} Rh4 {[%emt 0:00:03]} 87. Kd3 {[%emt 0:00:08]} Kd5 {[%emt 0:00:02]} 88. Kc3 {[%emt 0:00:03]} Rh3+ {[%emt 0:00:05]} 89. Kb4 {[%emt 0:00:04]} Re3 {[%emt 0:00:26]} 90. Rh8 {[%emt 0:00:12]} Re5 {[%emt 0:00:30]} 91. Kc3 {[%emt 0:00:07]} Re3+ {[%emt 0:00:44]} 92. Kb4 {[%emt 0:00:01]} Kc6 {[%emt 0:00:36]} 93. Kc4 {[%emt 0:00:55]} Re4+ {[%emt 0:00:04]} 94. Kd3 {[%emt 0:00:05]} Nc5+ {[%emt 0:00:02]} 95. Kc3 {[%emt 0:00:01]} Kb5 {[%emt 0:00:28]} 96. Rb8+ {[%emt 0:00:03]} Kc6 {[%emt 0:00:03]} 97. Rc8+ {[%emt 0:00:04]} Kd5 {[%emt 0:00:10]} 98. Rd8+ {[%emt 0:00:02]} Ke5 {[%emt 0:00:03]} 99. Re8+ {[%emt 0:00:04]} Ne6 {[%emt 0:00:01]} 100. Rh8 {[%emt 0:00:01]} Rg4 {[%emt 0:00:11]} 101. Rh5+ {[%emt 0:00:20]} Ke4 {[%emt 0:00:03]} 102. Rh8 {[%emt 0:00:01]} Ke3 {[%emt 0:00:05]} 103. Rh3+ {[%emt 0:00:14]} Ke4 {[%emt 0:00:11]} 104. Rh8 {[%emt 0:00:02]} Nd4 {[%emt 0:00:05]} 105. Re8+ {[%emt 0:00:03]} Kd5 {[%emt 0:00:02]} 106. Rd8+ {[%emt 0:00:01]} Kc5 {[%emt 0:00:01]} 107. Rc8+ {[%emt 0:00:03]} Nc6 {[%emt 0:00:01]} 108. Kd3 {[%emt 0:00:08]} Kd5 {[%emt 0:00:02]} 109. Ke3 {[%emt 0:00:03]} Re4+ {[%emt 0:00:04]} 110. Kd3 {[%emt 0:00:17]} Ne5+ {[%emt 0:00:01]} 111. Kc3 {[%emt 0:00:03]} Re3+ {[%emt 0:00:14]} 112. Kd2 {[%emt 0:00:11]} Ra3 {[%emt 0:00:06]} 113. Rd8+ {[%emt 0:00:09]} Ke4 {[%emt 0:00:02]} 114. Kc2 {[%emt 0:00:04]} Nd3 {[%emt 0:00:11]} 115. Rh8 {[%emt 0:00:13]} Nc5 {[%emt 0:00:25]} 116. Re8+ {[%emt 0:00:21]} Kd4 {[%emt 0:00:03]} 117. Rd8+ {[%emt 0:00:04]} Ke3 {[%emt 0:00:07]} 118. Rh8 {[%emt 0:00:08]} Ra2+ {[%emt 0:00:06]} 119. Kc3 {[%emt 0:00:03]} Ke4 {[%emt 0:00:35]} 1/2-1/2

[Event "European Women Rapid-ch 2023"]
[Site "Monaco"]
[Date "2024.01.14"]
[Round "7.3"]
[White "Paehtz, Elisabeth"]
[Black "Papp, Petra"]
[Result "1-0"]
[ECO "D03"]
[WhiteElo "2461"]
[BlackElo "2267"]
[Annotator "RC"]
[PlyCount "103"]
[EventDate "2023.12.19"]
[EventType "swiss"]
[EventCountry "MNC"]
[SourceTitle "playchess.com"]
[Source "ChessBase"]
[SourceQuality "1"]
[TimeControl "900+10"]

1. d4 {[%emt 0:00:01]} Nf6 {[%emt 0:00:03]} 2. Nf3 {[%emt 0:00:02]} g6 {[%emt 0:00:09]} 3. Bg5 {[%emt 0:00:02]} Bg7 {[%emt 0:00:05]} 4. Nbd2 {[%emt 0:00:01]} O-O {[%emt 0:00:09]} 5. c3 {[%emt 0:00:02]} d5 {[%emt 0:00:58]} 6. e3 {[%emt 0:00:01]} c5 {[%emt 0:00:36]} 7. Be2 {[%emt 0:00:02]} Nc6 {[%emt 0:00:07]} 8. O-O {[%emt 0:00:04]} Qb6 {[%emt 0:00:32]} 9. Qb3 {[%emt 0:00:01]} Be6 {[%emt 0:01:39]} 10. Qa3 {[%emt 0:00:12]} Ne4 {[%emt 0:01:34]} 11. Nxe4 {[%emt 0:00:23]} dxe4 {[%emt 0:00:02]} 12. Nd2 {[%emt 0:01:57]} h6 {[%emt 0:01:44]} 13. Bf4 {[%emt 0:01:21]} g5 {[%emt 0:02:09]} 14. Bg3 {[%emt 0:00:37]} cxd4 {[%emt 0:00:09]} 15. Nxe4 {[%emt 0:02:59]} dxe3 {[%emt 0:00:28]} 16. Nc5 {[%emt 0:00:01]} Bf5 {[%emt 0:02:34]} 17. fxe3 {[%emt 0:00:08]} Bg6 {[%emt 0:00:01]} 18. Rad1 {[%emt 0:02:50]} Rfd8 {[%emt 0:00:52]} 19. Bf3 {[%emt 0:00:58]} e6 {[%emt 0:02:14]} 20. Nd7 {[%emt 0:00:35]} Qb5 {[%emt 0:01:16]} 21. Rf2 {[%emt 0:01:11]} Ne5 {[%emt 0:00:37]} 22. Bxe5 {[%emt 0:00:52]} Rxd7 {[%emt 0:00:01]} 23. Rxd7 {[%emt 0:00:21]} Qxd7 {[%emt 0:00:02]} 24. Qd6 {[%emt 0:00:15]} Rd8 {[%emt 0:00:22]} 25. Rd2 {[%emt 0:00:02]} Qxd6 {[%emt 0:00:06]} 26. Rxd6 {[%emt 0:00:03]} Rxd6 {[%emt 0:00:33]} 27. Bxd6 {[%emt 0:00:01]} b5 {[%emt 0:00:00]} 28. Be2 {[%emt 0:01:31]} Bb1 {[%emt 0:00:27]} 29. Bxb5 {[%emt 0:00:10]} Bxa2 {[%emt 0:00:02]} 30. Bc5 {[%emt 0:00:05]} a5 {[%emt 0:00:20]} 31. Bb6 {[%emt 0:00:01]} Bf8 {[%emt 0:00:15]} 32. Bxa5 {[%emt 0:00:04]} Bc5 {[%emt 0:00:01]} 33. Kf2 {[%emt 0:00:04]} f5 {[%emt 0:00:00]} 34. Ke2 {[%emt 0:00:11]} Bd5 {[%emt 0:00:27]} 35. g3 {[%emt 0:00:03]} h5 {[%emt 0:00:08]} 36. Bd8 {[%emt 0:00:11]} g4 {[%emt 0:00:10]} 37. b4 {[%emt 0:00:43]} Bd6 {[%emt 0:00:01]} 38. Kf2 {[%emt 0:00:40]} Be4 {[%emt 0:00:22]} 39. Bd7 {[%emt 0:00:39]} e5 {[%emt 0:00:10]} 40. Be8 {[%emt 0:00:32]} f4 {[%emt 0:00:13]} 41. exf4 {[%emt 0:00:03]} exf4 {[%emt 0:00:00]} 42. Bxh5 {[%emt 0:00:18]} Be5 {[%emt 0:00:10]} 43. gxf4 {[%emt 0:00:13]} Bxc3 {[%emt 0:00:05]} 44. b5 {[%emt 0:00:06]} Bf3 {[%emt 0:00:22]} 45. b6 {[%emt 0:00:29]} Kg7 {[%emt 0:00:13]} 46. Bc7 {[%emt 0:00:31]} Kf6 {[%emt 0:00:09]} 47. h3 {[%emt 0:00:33]} Kf5 {[%emt 0:00:12]} 48. Bxg4+ {[%emt 0:00:17]} Bxg4 {[%emt 0:00:03]} 49. hxg4+ {[%emt 0:00:01]} Kxg4 {[%emt 0:00:01]} 50. b7 {[%emt 0:00:13]} Bd4+ {[%emt 0:00:02]} 51. Ke2 {[%emt 0:00:01]} Ba7 {[%emt 0:00:01]} 52. b8=Q {[%emt 0:00:03]} 1-0

[Event "European Women Rapid-ch 2023"]
[Site "Monaco"]
[Date "2024.01.14"]
[Round "7.4"]
[White "Charkhalashvili, Inga"]
[Black "Stefanova, Antoaneta"]
[Result "0-1"]
[ECO "D48"]
[WhiteElo "2239"]
[BlackElo "2431"]
[Annotator "RC"]
[PlyCount "88"]
[EventDate "2023.12.19"]
[EventType "swiss"]
[EventCountry "MNC"]
[SourceTitle "playchess.com"]
[Source "ChessBase"]
[SourceQuality "1"]
[TimeControl "900+10"]

1. d4 {[%emt 0:00:01]} d5 {[%emt 0:00:55]} 2. c4 {[%emt 0:00:06]} c6 {[%emt 0:00:02]} 3. Nc3 {[%emt 0:00:05]} Nf6 {[%emt 0:00:02]} 4. Nf3 {[%emt 0:00:02]} a6 {[%emt 0:00:02]} 5. e3 {[%emt 0:01:12]} e6 {[%emt 0:00:03]} 6. Bd3 {[%emt 0:00:02]} dxc4 {[%emt 0:00:09]} 7. Bxc4 {[%emt 0:00:02]} b5 {[%emt 0:00:10]} 8. Bd3 {[%emt 0:00:37]} c5 {[%emt 0:00:09]} 9. O-O {[%emt 0:00:45]} Bb7 {[%emt 0:00:20]} 10. Qe2 {[%emt 0:01:11]} Nbd7 {[%emt 0:02:25]} 11. Rd1 {[%emt 0:01:12]} Qc7 {[%emt 0:00:40]} 12. h3 {[%emt 0:00:46]} Be7 {[%emt 0:00:12]} 13. dxc5 {[%emt 0:00:41]} Nxc5 {[%emt 0:00:35]} 14. Bc2 {[%emt 0:00:28]} O-O {[%emt 0:02:04]} 15. a3 {[%emt 0:00:02]} Nce4 {[%emt 0:00:25]} 16. Bd2 {[%emt 0:01:44]} Nxd2 {[%emt 0:00:22]} 17. Nxd2 {[%emt 0:00:56]} b4 {[%emt 0:00:50]} 18. axb4 {[%emt 0:00:04]} Bxb4 {[%emt 0:00:01]} 19. Qc4 {[%emt 0:01:48]} Qe7 {[%emt 0:01:36]} 20. Qh4 {[%emt 0:01:47]} h6 {[%emt 0:00:34]} 21. Nc4 {[%emt 0:00:20]} a5 {[%emt 0:00:38]} 22. Ne5 {[%emt 0:01:02]} Rac8 {[%emt 0:00:49]} 23. Nd7 {[%emt 0:00:51]} Rfd8 {[%emt 0:01:35]} 24. Nxf6+ {[%emt 0:00:03]} Qxf6 {[%emt 0:00:05]} 25. Qxf6 {[%emt 0:00:28]} gxf6 {[%emt 0:00:14]} 26. Rxd8+ {[%emt 0:00:49]} Rxd8 {[%emt 0:00:01]} 27. Be4 {[%emt 0:01:59]} Ba6 {[%emt 0:01:19]} 28. Bc6 {[%emt 0:00:12]} Rc8 {[%emt 0:01:36]} 29. Bb5 {[%emt 0:00:08]} Bb7 {[%emt 0:00:03]} 30. Na4 {[%emt 0:00:20]} f5 {[%emt 0:00:23]} 31. b3 {[%emt 0:00:09]} Be4 {[%emt 0:00:16]} 32. Bc4 {[%emt 0:00:03]} Rd8 {[%emt 0:00:07]} 33. Nb6 {[%emt 0:00:27]} Bc2 {[%emt 0:00:08]} 34. Rc1 {[%emt 0:00:14]} Rd2 {[%emt 0:00:12]} 35. Na8 {[%emt 0:00:11]} Bc3 {[%emt 0:00:14]} 36. Nc7 {[%emt 0:00:02]} Bb2 {[%emt 0:00:07]} 37. Rf1 {[%emt 0:00:01]} Bd3 {[%emt 0:00:25]} 38. Bxd3 {[%emt 0:00:29]} Rxd3 {[%emt 0:00:02]} 39. Rb1 {[%emt 0:00:03]} Rxb3 {[%emt 0:00:06]} 40. Na6 {[%emt 0:00:02]} Rb5 {[%emt 0:00:37]} 41. Nc5 {[%emt 0:00:14]} Rb8 {[%emt 0:00:25]} 42. Na4 {[%emt 0:00:10]} Be5 {[%emt 0:00:03]} 43. Rc1 {[%emt 0:00:06]} Bd6 {[%emt 0:00:13]} 44. Rc6 {[%emt 0:00:03]} Rb1+ {[%emt 0:00:01]} 0-1

[Event "European Women Rapid-ch 2023"]
[Site "Monaco"]
[Date "2024.01.14"]
[Round "7.5"]
[White "Garcia Martin, Marta"]
[Black "Khademalsharieh, Sarasadat"]
[Result "1-0"]
[ECO "C50"]
[WhiteElo "2342"]
[BlackElo "2486"]
[Annotator "RC"]
[PlyCount "91"]
[EventDate "2023.12.19"]
[EventType "swiss"]
[EventCountry "MNC"]
[SourceTitle "playchess.com"]
[Source "ChessBase"]
[SourceQuality "1"]
[TimeControl "900+10"]

1. e4 {[%emt 0:00:03]} e5 {[%emt 0:00:01]} 2. Nf3 {[%emt 0:00:01]} Nc6 {[%emt 0:00:02]} 3. Bc4 {[%emt 0:00:04]} Bc5 {[%emt 0:00:06]} 4. d3 {[%emt 0:00:04]} Nf6 {[%emt 0:00:03]} 5. Nc3 {[%emt 0:00:02]} h6 {[%emt 0:00:17]} 6. h3 {[%emt 0:00:05]} a6 {[%emt 0:00:04]} 7. Be3 {[%emt 0:00:06]} Bxe3 {[%emt 0:01:18]} 8. fxe3 {[%emt 0:00:02]} d6 {[%emt 0:00:02]} 9. d4 {[%emt 0:00:22]} O-O {[%emt 0:00:13]} 10. O-O {[%emt 0:00:02]} Bd7 {[%emt 0:01:34]} 11. a4 {[%emt 0:02:06]} Kh7 {[%emt 0:03:45]} 12. Qe1 {[%emt 0:00:17]} Nb4 {[%emt 0:00:30]} 13. Bb3 {[%emt 0:01:43]} Be6 {[%emt 0:01:12]} 14. d5 {[%emt 0:00:37]} Bd7 {[%emt 0:00:27]} 15. a5 {[%emt 0:02:44]} c5 {[%emt 0:00:27]} 16. Qe2 {[%emt 0:04:56]} b5 {[%emt 0:01:56]} 17. axb6 {[%emt 0:00:12]} Qxb6 {[%emt 0:00:22]} 18. Nh4 {[%emt 0:01:19]} Qd8 {[%emt 0:02:18]} 19. Nf5 {[%emt 0:00:18]} Bxf5 {[%emt 0:00:52]} 20. Rxf5 {[%emt 0:00:01]} g6 {[%emt 0:00:02]} 21. Rf3 {[%emt 0:00:26]} Kg7 {[%emt 0:00:01]} 22. Bc4 {[%emt 0:00:34]} a5 {[%emt 0:00:13]} 23. Na4 {[%emt 0:00:38]} Nxe4 {[%emt 0:00:43]} 24. c3 {[%emt 0:00:00]} f5 {[%emt 0:00:08]} 25. cxb4 {[%emt 0:01:04]} axb4 {[%emt 0:00:02]} 26. Bd3 {[%emt 0:00:17]} Ng5 {[%emt 0:00:50]} 27. Rff1 {[%emt 0:00:01]} e4 {[%emt 0:00:16]} 28. Bb5 {[%emt 0:00:05]} Nf7 {[%emt 0:00:15]} 29. Bc6 {[%emt 0:00:19]} Ra5 {[%emt 0:00:15]} 30. b3 {[%emt 0:00:14]} Ne5 {[%emt 0:00:03]} 31. Nb2 {[%emt 0:00:15]} Qc7 {[%emt 0:00:59]} 32. Nc4 {[%emt 0:00:35]} Rxa1 {[%emt 0:00:36]} 33. Rxa1 {[%emt 0:00:01]} Nxc6 {[%emt 0:00:17]} 34. dxc6 {[%emt 0:00:02]} Qxc6 {[%emt 0:00:01]} 35. Qb2+ {[%emt 0:00:13]} Kg8 {[%emt 0:00:09]} 36. Ra7 {[%emt 0:00:39]} Rf7 {[%emt 0:00:01]} 37. Rxf7 {[%emt 0:00:23]} Kxf7 {[%emt 0:00:01]} 38. Qh8 {[%emt 0:00:06]} Qd5 {[%emt 0:00:04]} 39. Qxh6 {[%emt 0:00:18]} Qd1+ {[%emt 0:00:22]} 40. Kh2 {[%emt 0:00:00]} d5 {[%emt 0:00:43]} 41. Ne5+ {[%emt 0:00:04]} Kf6 {[%emt 0:00:01]} 42. Nxg6 {[%emt 0:00:15]} c4 {[%emt 0:00:12]} 43. Nf4+ {[%emt 0:00:04]} Kf7 {[%emt 0:00:06]} 44. Qg6+ {[%emt 0:00:07]} Ke7 {[%emt 0:00:04]} 45. Qe6+ {[%emt 0:00:10]} Kf8 {[%emt 0:00:11]} 46. Nxd5 {[%emt 0:00:31]} 1-0

[Event "European Women Rapid-ch 2023"]
[Site "Monaco"]
[Date "2024.01.14"]
[Round "7.6"]
[White "Rodriguez Redondo, Adhara"]
[Black "Wagner, Dinara"]
[Result "0-1"]
[ECO "B92"]
[WhiteElo "2130"]
[BlackElo "2459"]
[Annotator "RC"]
[PlyCount "68"]
[EventDate "2023.12.19"]
[EventType "swiss"]
[EventCountry "MNC"]
[SourceTitle "playchess.com"]
[Source "ChessBase"]
[SourceQuality "1"]
[TimeControl "900+10"]

1. e4 {[%emt 0:00:03]} c5 {[%emt 0:00:02]} 2. Nf3 {[%emt 0:00:04]} d6 {[%emt 0:00:04]} 3. d4 {[%emt 0:00:02]} cxd4 {[%emt 0:00:02]} 4. Nxd4 {[%emt 0:00:02]} Nf6 {[%emt 0:00:02]} 5. Nc3 {[%emt 0:00:01]} a6 {[%emt 0:00:02]} 6. Be2 {[%emt 0:00:02]} e5 {[%emt 0:00:03]} 7. Nf3 {[%emt 0:00:02]} Be7 {[%emt 0:00:23]} 8. Bg5 {[%emt 0:00:11]} Be6 {[%emt 0:00:04]} 9. Bxf6 {[%emt 0:00:08]} Bxf6 {[%emt 0:00:02]} 10. O-O {[%emt 0:01:03]} O-O {[%emt 0:00:27]} 11. Nd5 {[%emt 0:00:09]} Nd7 {[%emt 0:00:40]} 12. Re1 {[%emt 0:02:44]} Rc8 {[%emt 0:00:37]} 13. c3 {[%emt 0:00:34]} Bg5 {[%emt 0:01:26]} 14. Nxg5 {[%emt 0:03:14]} Qxg5 {[%emt 0:00:03]} 15. Ne3 {[%emt 0:00:03]} Nf6 {[%emt 0:03:25]} 16. Bf3 {[%emt 0:00:27]} Rfd8 {[%emt 0:00:50]} 17. g3 {[%emt 0:01:14]} Qg6 {[%emt 0:00:46]} 18. Qa4 {[%emt 0:01:30]} Nd7 {[%emt 0:01:42]} 19. Rad1 {[%emt 0:00:32]} Nc5 {[%emt 0:00:02]} 20. Qa3 {[%emt 0:01:00]} Kh8 {[%emt 0:01:31]} 21. Nd5 {[%emt 0:02:02]} Bxd5 {[%emt 0:00:01]} 22. Rxd5 {[%emt 0:00:03]} f5 {[%emt 0:00:07]} 23. exf5 {[%emt 0:02:10]} Qxf5 {[%emt 0:00:02]} 24. Bg2 {[%emt 0:00:01]} Rf8 {[%emt 0:00:25]} 25. Rf1 {[%emt 0:00:54]} Qf6 {[%emt 0:02:17]} 26. Qb4 {[%emt 0:00:46]} Rf7 {[%emt 0:00:56]} 27. Qg4 {[%emt 0:00:14]} Rcf8 {[%emt 0:00:02]} 28. Qd1 {[%emt 0:00:06]} e4 {[%emt 0:01:03]} 29. Rxd6 {[%emt 0:00:15]} Qe7 {[%emt 0:00:01]} 30. Qd5 {[%emt 0:00:19]} Nd3 {[%emt 0:01:05]} 31. Re6 {[%emt 0:00:09]} Qc7 {[%emt 0:00:11]} 32. Bxe4 {[%emt 0:00:12]} Nxf2 {[%emt 0:00:26]} 33. Bg2 {[%emt 0:00:02]} Rf5 {[%emt 0:00:02]} 34. Qd6 {[%emt 0:00:17]} Qc4 {[%emt 0:00:12]} 0-1